bitfinex/quotes_BTCUSD_20250109
["timestamp","ask_amount","ask_price","bid_price","bid_amount"]
[1736457116901,0.26343721,92374.0,92361.0,0.21654]
[1736457117111,0.04792521,92374.0,92364.0,0.216532]
[1736457117824,0.04692521,92374.0,92364.0,0.216532]
[1736457118056,0.04792521,92374.0,92364.0,0.216532]
[1736457118266,0.00149332,92374.0,92364.0,0.20753198]
[1736457118435,0.00049332,92374.0,92364.0,0.20753198]
[1736457118870,0.00149332,92374.0,92364.0,0.20753198]
[1736457119584,0.22000432,92374.0,92361.0,0.21654]
[1736457120568,0.15,92371.0,92337.0,0.216596]
[1736457120817,0.216576,92347.0,92329.0,0.0803]
[1736457121057,0.0781,92371.0,92329.0,0.0803]
[1736457121325,0.04473179,92373.0,92354.0,0.0803]
[1736457121539,0.216515,92372.0,92355.0,0.0464]
[1736457121741,0.24396977,92372.0,92357.0,0.21655]
[1736457121951,0.216525,92368.0,92356.0,0.216553]
[1736457122166,0.04609911,92367.0,92356.0,0.216553]
[1736457122372,0.216529,92366.0,92356.0,0.216553]
[1736457122787,0.005,92369.0,92355.0,0.0464]
[1736457122995,8.51e-05,92401.0,92366.0,0.216527]
[1736457122996,0.009,92371.0,92366.0,0.216527]
[1736457123212,0.216461,92396.0,92373.0,0.216513]
[1736457123439,0.21658862,92400.0,92373.0,0.216513]
[1736457123440,0.21658862,92400.0,92373.0,0.32081276]
[1736457123663,0.216461,92396.0,92373.0,0.32081276]
[1736457124316,0.0110463,92392.0,92373.0,0.32081276]
[1736457124740,0.0110463,92392.0,92373.0,0.32681276]
[1736457125413,0.0110463,92392.0,92373.0,0.32881276]
[1736457125819,0.0110463,92392.0,92373.0,0.32681276]
[1736457126028,0.216474,92390.0,92373.0,0.216513]
[1736457126264,0.216474,92390.0,92373.0,0.218513]
[1736457126473,0.216474,92390.0,92373.0,0.223513]
[1736457127020,0.216474,92390.0,92373.0,0.218513]
[1736457127433,0.00249332,92374.0,92373.0,0.218513]
[1736457127672,0.00049332,92374.0,92373.0,0.216513]
[1736457127879,0.00049332,92374.0,92373.0,0.218513]
[1736457128145,0.00049332,92374.0,92373.0,0.21151298]
[1736457128523,0.00049332,92374.0,92373.0,0.20951298]
[1736457129100,0.00049332,92374.0,92373.0,0.002]
[1736457129339,0.00049332,92374.0,92369.0,0.21652]
[1736457129583,0.00049332,92374.0,92373.0,0.002]
[1736457129990,0.00049332,92374.0,92369.0,0.21652]
[1736457130814,0.00249332,92374.0,92369.0,0.21652]
[1736457131165,0.00049332,92374.0,92369.0,0.21652]
[1736457131566,0.02278073,92373.0,92365.0,0.216532]
[1736457131770,0.02278073,92373.0,92363.0,0.216536]
[1736457132454,0.32081476,92372.0,92350.0,0.01008]
[1736457132660,0.15,92371.0,92341.0,0.0464]
[1736457132864,0.21657,92349.0,92341.0,0.0464]
[1736457133237,0.10429976,92348.0,92328.0,0.0477]
[1736457133448,0.10429976,92348.0,92321.0,0.0757]
[1736457133655,0.15,92343.0,92314.0,0.21665]
[1736457133867,0.216608,92333.0,92314.0,0.21665]
[1736457134072,0.216618,92329.0,92319.0,0.216638]
[1736457134308,0.216608,92333.0,92319.0,0.216638]
[1736457135037,0.216608,92333.0,92325.0,0.0003006]
[1736457135238,0.10429976,92342.0,92325.0,0.0003006]
[1736457135469,0.11649513,92342.0,92325.0,0.0003006]
[1736457135638,0.216608,92333.0,92325.0,0.0003006]
[1736457137007,0.001,92333.0,92325.0,0.0003006]
[1736457137271,0.001,92333.0,92332.0,0.216609]
[1736457137880,0.01085743,92345.0,92332.0,0.216609]
[1736457138085,0.02274244,92344.0,92332.0,0.20760898]
[1736457138290,0.002,92342.0,92332.0,0.20760898]
[1736457138506,0.002,92342.0,92332.0,0.42421798]
[1736457138877,0.01086617,92344.0,92326.0,0.216623]
[1736457139085,0.15,92350.0,92326.0,0.216623]
[1736457139260,0.216599,92337.0,92325.0,0.0033006]
[1736457139463,0.216599,92337.0,92325.0,0.0003006]
[1736457139665,0.216599,92337.0,92332.0,0.003]
[1736457140084,0.216599,92337.0,92325.0,0.0003006]
[1736457140290,0.433221,92332.0,92325.0,0.0003006]
[1736457140514,0.21662,92328.0,92325.0,0.0003006]
[1736457140963,0.216602,92335.0,92325.0,0.0003006]
[1736457141080,0.2166,92336.0,92325.0,0.0003006]
[1736457141292,0.22735223,92336.0,92325.0,0.0003006]
[1736457141521,0.01075223,92336.0,92332.0,0.001]
[1736457141718,0.216595,92339.0,92332.0,0.001]
[1736457142296,0.2749131,92339.0,92332.0,0.001]
[1736457142712,0.216604,92335.0,92332.0,0.001]
[1736457143135,0.216604,92335.0,92320.0,0.20910678]
[1736457143488,0.216613,92331.0,92320.0,0.20910678]
[1736457144282,0.32090376,92335.0,92320.0,0.20910678]
[1736457144283,0.32090376,92335.0,92320.0,0.42574378]
[1736457144482,0.05975008,92335.0,92324.0,0.216627]
[1736457144692,0.216597,92338.0,92324.0,0.216627]
[1736457145087,0.216597,92338.0,92320.0,0.20910678]
[1736457145088,0.005,92331.0,92328.0,0.216617]
[1736457145358,0.21673093,92343.0,92328.0,0.216617]
[1736457145587,0.002,92335.0,92328.0,0.216617]
[1736457145739,0.008,92335.0,92328.0,0.216617]
[1736457145940,0.03888878,92335.0,92328.0,0.216617]
[1736457146952,0.216588,92341.0,92335.0,0.06111122]
[1736457148288,0.216588,92341.0,92335.0,0.0521112]
[1736457148467,0.221588,92341.0,92335.0,0.0521112]
[1736457148681,0.216598,92337.0,92335.0,0.0521112]
[1736457148868,0.30856333,92336.0,92335.0,0.0521112]
[1736457150286,0.30956333,92336.0,92335.0,0.0521112]
[1736457150667,0.25529976,92336.0,92335.0,0.0521112]
[1736457150918,0.25629976,92336.0,92335.0,0.0521112]
[1736457152178,0.002,92336.0,92335.0,0.0521112]
[1736457153084,0.001,92336.0,92335.0,0.04311118]
[1736457153488,0.003,92336.0,92335.0,0.04311118]
[1736457154418,0.001,92336.0,92335.0,0.04311118]
[1736457154638,0.003,92336.0,92335.0,0.04311118]
[1736457155045,0.001,92336.0,92335.0,0.04311118]
[1736457155643,0.002,92336.0,92335.0,0.04311118]
[1736457155855,0.10629976,92336.0,92335.0,0.04311118]
[1736457156059,0.001,92336.0,92335.0,0.04311118]
[1736457156486,0.002,92336.0,92335.0,0.04311118]
[1736457156728,0.001,92336.0,92335.0,0.04311118]
[1736457157149,0.002,92336.0,92335.0,0.04311118]
[1736457157367,0.001,92336.0,92335.0,0.04311118]
[1736457157577,0.216562,92353.0,92340.0,0.216589]
[1736457157776,0.216572,92348.0,92336.0,0.2166]
[1736457158221,0.216572,92348.0,92336.0,0.20759998]
[1736457158647,0.433144,92348.0,92336.0,0.20759998]
[1736457158823,0.216572,92348.0,92336.0,0.20759998]
[1736457159032,0.216572,92348.0,92335.0,0.04311118]
[1736457159033,0.216584,92343.0,92335.0,0.04311118]
[1736457159454,0.03218838,92342.0,92335.0,0.04311118]
[1736457159716,0.216596,92338.0,92335.0,0.04311118]
[1736457159923,0.10429976,92337.0,92335.0,0.04311118]
[1736457160560,0.2166,92336.0,92335.0,0.04311118]
[1736457160778,0.32089976,92336.0,92335.0,0.04311118]
[1736457160960,0.47089976,92336.0,92335.0,0.04311118]
[1736457161176,0.56239819,92336.0,92335.0,0.04311118]
[1736457161822,0.56939819,92336.0,92335.0,0.04311118]
[1736457162032,0.32541442,92336.0,92335.0,0.04311118]
[1736457162250,0.54201442,92336.0,92335.0,0.04311118]
[1736457162698,0.54001442,92336.0,92335.0,0.04311118]
[1736457162905,0.44851599,92336.0,92335.0,0.04311118]
[1736457163134,0.44351599,92336.0,92335.0,0.04311118]
[1736457163349,0.44851599,92336.0,92335.0,0.04311118]
[1736457163578,0.45251599,92336.0,92335.0,0.04311118]
[1736457164180,0.44751599,92336.0,92335.0,0.04311118]
[1736457164456,0.44751599,92336.0,92335.0,0.03411116]
[1736457164661,0.45251599,92336.0,92335.0,0.03411116]
[1736457164844,0.44351599,92336.0,92335.0,0.03411116]
[1736457165048,0.44851599,92336.0,92335.0,0.03411116]
[1736457165259,0.45051599,92336.0,92335.0,0.03411116]
[1736457165468,0.30051599,92336.0,92335.0,0.03411116]
[1736457165724,0.29851599,92336.0,92335.0,0.03411116]
[1736457166059,0.30051599,92336.0,92335.0,0.03411116]
[1736457166488,0.29351599,92336.0,92335.0,0.03411116]
[1736457166673,0.005,92336.0,92335.0,0.03411116]
[1736457166875,0.006,92336.0,92335.0,0.03411116]
[1736457167104,0.001,92336.0,92335.0,0.03411116]
[1736457167301,0.004,92336.0,92335.0,0.03411116]
[1736457167704,0.001,92336.0,92335.0,0.03411116]
[1736457167903,0.004,92336.0,92335.0,0.03411116]
[1736457168170,0.003,92336.0,92335.0,0.02511114]
[1736457168578,0.004,92336.0,92335.0,0.02511114]
[1736457169673,0.30210821,92336.0,92335.0,0.02511114]
[1736457170031,0.48484653,92336.0,92335.0,0.02511114]
[1736457170246,0.60784653,92336.0,92335.0,6.327e-05]
[1736457170445,0.60784653,92336.0,92335.0,1e-08]
[1736457170556,0.41003808,92336.0,92335.0,1e-08]
[1736457170770,0.51433784,92336.0,92335.0,1e-08]
[1736457170993,0.51239952,92336.0,92335.0,1e-08]
[1736457171223,0.40709976,92336.0,92335.0,1e-08]
[1736457171624,0.40809976,92336.0,92335.0,1e-08]
[1736457172100,0.40709976,92336.0,92335.0,1e-08]
[1736457172475,0.41309976,92336.0,92335.0,0.00100001]
[1736457172855,0.56309976,92336.0,92335.0,0.00100001]
[1736457173196,0.56309976,92336.0,92297.0,0.216689]
[1736457173197,0.35,92276.0,92269.0,0.0001702]
[1736457173373,0.1,92270.0,92260.0,8.5e-05]
[1736457173581,0.216759,92268.0,92260.0,8.5e-05]
[1736457173949,0.34321855,92268.0,92267.0,0.00023285]
[1736457174485,0.49321855,92268.0,92267.0,0.00023285]
[1736457174712,0.216752,92271.0,92267.0,0.00023285]
[1736457174713,0.216754,92271.0,92267.0,0.00023285]
[1736457174921,0.01103816,92276.0,92267.0,0.00023285]
[1736457175120,0.216731,92280.0,92267.0,0.00023285]
[1736457175531,0.009,92268.0,92267.0,0.00123285]
[1736457175868,0.22775832,92280.0,92267.0,0.00023285]
[1736457176073,0.216748,92273.0,92267.0,0.00023285]
[1736457176274,0.007,92276.0,92267.0,0.00123285]
[1736457176499,0.216743,92275.0,92267.0,0.00123285]
[1736457176859,0.007,92276.0,92267.0,0.00123285]
[1736457177067,0.007,92276.0,92268.0,0.216759]
[1736457177268,0.007,92276.0,92267.0,0.00123285]
[1736457177465,0.04444783,92279.0,92268.0,0.216759]
[1736457177765,0.216714,92288.0,92269.0,0.10429976]
[1736457177965,0.216714,92288.0,92270.0,0.216755]
[1736457178319,0.001,92280.0,92270.0,0.20775498]
[1736457178557,0.003,92276.0,92270.0,0.20775498]
[1736457178834,0.22734265,92288.0,92275.0,0.216743]
[1736457178973,0.222714,92288.0,92270.0,0.216755]
[1736457179177,0.2666557,92288.0,92270.0,0.43351]
[1736457179369,0.2616557,92288.0,92270.0,0.43351]
[1736457179574,0.2606557,92288.0,92270.0,0.43351]
[1736457180183,0.216733,92280.0,92267.0,0.00023285]
[1736457180394,0.216758,92269.0,92267.0,0.00023285]
[1736457180598,0.15,92286.0,92267.0,0.00023285]
[1736457180803,0.216749,92273.0,92267.0,0.00023285]
[1736457181183,0.1,92302.0,92268.0,0.216759]
[1736457181303,0.216736,92278.0,92268.0,0.216759]
[1736457181503,0.216736,92278.0,92267.0,0.00023285]
[1736457181704,0.260282,92278.0,92267.0,0.00023285]
[1736457181965,0.003,92273.0,92268.0,0.216759]
[1736457182203,0.260282,92278.0,92267.0,0.00023285]
[1736457182584,0.261282,92278.0,92267.0,0.00023285]
[1736457182940,0.433509,92271.0,92267.0,0.00023285]
[1736457183144,0.0433509,92270.0,92219.0,0.216874]
[1736457183360,0.216783,92258.0,92257.0,6.414e-05]
[1736457183789,0.216764,92266.0,92257.0,6.414e-05]
[1736457184114,0.05437751,92278.0,92257.0,6.414e-05]
[1736457184115,0.216768,92265.0,92257.0,6.414e-05]
[1736457184954,0.001,92258.0,92257.0,6.414e-05]
[1736457185379,0.216768,92265.0,92257.0,6.414e-05]
[1736457187114,0.01095612,92278.0,92257.0,6.414e-05]
[1736457187115,0.1463,92303.0,92257.0,6.414e-05]
[1736457187392,0.10429976,92294.0,92258.0,0.18639976]
[1736457187599,0.216714,92288.0,92260.0,0.216778]
[1736457187746,0.216714,92288.0,92275.0,0.216741]
[1736457187943,0.216732,92280.0,92266.0,0.216762]
[1736457188149,0.216732,92280.0,92266.0,0.20776198]
[1736457188339,0.0109908,92298.0,92266.0,0.10429976]
[1736457188537,0.013,92295.0,92276.0,0.216738]
[1736457188741,0.216708,92290.0,92276.0,0.216738]
[1736457188952,0.25429976,92289.0,92259.0,0.0474]
[1736457189196,0.216725,92283.0,92272.0,0.216749]
[1736457189397,0.001,92280.0,92272.0,0.216749]
[1736457189786,0.001,92280.0,92260.0,0.10429976]
[1736457189787,0.216734,92279.0,92265.0,0.216766]
[1736457189994,0.216734,92279.0,92259.0,0.0474]
[1736457189995,0.216756,92270.0,92259.0,0.0474]
[1736457190205,0.10429976,92278.0,92259.0,0.0474]
[1736457190661,0.216773,92263.0,92257.0,6.414e-05]
[1736457190866,0.216756,92270.0,92257.0,0.21684714]
[1736457191059,0.0216756,92269.0,92257.0,0.21684714]
[1736457191697,0.216764,92267.0,92257.0,6.414e-05]
[1736457192319,0.0216756,92269.0,92258.0,0.216783]
[1736457192832,0.15,92272.0,92257.0,6.414e-05]
[1736457193017,0.15,92272.0,92259.0,0.216781]
[1736457193237,0.15,92272.0,92259.0,0.42456198]
[1736457193485,0.1609262,92272.0,92259.0,0.42456198]
[1736457193708,0.216752,92271.0,92259.0,0.20778098]
[1736457194491,0.2866246,92271.0,92259.0,0.20778098]
[1736457194692,0.0698726,92271.0,92257.0,6.414e-05]
[1736457194907,0.0149262,92272.0,92264.0,0.216768]
[1736457195111,0.0109262,92272.0,92264.0,0.216768]
[1736457195309,0.216742,92276.0,92264.0,0.216768]
[1736457195513,0.216727,92282.0,92257.0,6.414e-05]
[1736457195711,0.22741168,92282.0,92258.0,0.10429976]
[1736457195910,0.216731,92280.0,92259.0,0.216781]
[1736457196152,0.216731,92280.0,92268.0,0.216757]
[1736457196483,0.06608487,92281.0,92268.0,0.216757]
[1736457196682,0.216731,92280.0,92268.0,0.216757]
[1736457196889,0.22741168,92282.0,92257.0,6.414e-05]
[1736457196890,0.216736,92278.0,92257.0,6.414e-05]
[1736457197803,0.216736,92278.0,92265.0,0.216765]
[1736457198247,0.216755,92271.0,92258.0,0.20778298]
[1736457198426,0.10629976,92278.0,92257.0,6.414e-05]
[1736457198427,0.216775,92262.0,92257.0,6.414e-05]
[1736457199507,0.216762,92267.0,92257.0,6.414e-05]
[1736457199719,0.216762,92267.0,92265.0,0.001]
[1736457200330,0.216762,92267.0,92257.0,6.414e-05]
[1736457200331,0.216776,92261.0,92257.0,6.414e-05]
[1736457200533,0.216776,92261.0,92257.0,0.00606414]
[1736457201377,0.04454383,92260.0,92257.0,6.414e-05]
[1736457202299,0.04454383,92260.0,92257.0,0.00306414]
[1736457202524,0.01390034,92267.0,92257.0,0.00306414]
[1736457202907,0.01090034,92267.0,92257.0,6.414e-05]
[1736457203060,0.01090034,92267.0,92259.0,0.216781]
[1736457203269,0.03776553,92266.0,92259.0,0.216781]
[1736457203465,0.216755,92270.0,92259.0,0.216781]
[1736457203877,0.001,92267.0,92259.0,0.216781]
[1736457204098,0.444537,92270.0,92256.0,0.216786]
[1736457204511,0.444537,92270.0,92252.0,0.00049362]
[1736457204512,0.216792,92254.0,92252.0,0.00049362]
[1736457205672,0.10429976,92253.0,92252.0,0.00049362]
[1736457205852,0.25429976,92253.0,92252.0,0.00049362]
[1736457206870,0.25729976,92253.0,92252.0,0.00049362]
[1736457207301,0.25716932,92253.0,92252.0,0.00049362]
[1736457208032,0.153,92253.0,92252.0,0.00049362]
[1736457208346,0.153,92253.0,92240.0,0.216825]
[1736457208563,0.216797,92252.0,92240.0,0.216825]
[1736457208702,0.18318902,92253.0,92240.0,0.216825]
[1736457208938,0.18318902,92253.0,92232.0,0.265043]
[1736457208939,0.04387566,92253.0,92232.0,0.0482]
[1736457209139,0.47646666,92253.0,92239.0,0.216826]
[1736457209341,0.11647902,92253.0,92233.0,0.216842]
[1736457209544,0.11647902,92253.0,92232.0,0.0482]
[1736457209545,0.1766479,92252.0,92232.0,0.0482]
[1736457209700,0.1766479,92252.0,92231.0,0.216846]
[1736457209701,0.15,92250.0,92231.0,0.216846]
[1736457209904,0.15,92250.0,92197.0,0.1]
[1736457209905,0.0807,92248.0,92225.0,0.216859]
[1736457210148,0.15,92244.0,92226.0,0.216857]
[1736457210354,0.216841,92234.0,92221.0,0.21687]
[1736457210799,0.216841,92234.0,92221.0,0.43374]
[1736457210998,0.216841,92234.0,92225.0,0.21686]
[1736457211219,0.216841,92234.0,92221.0,0.21687]
[1736457211443,0.215841,92234.0,92221.0,0.21687]
[1736457211602,0.216833,92237.0,92221.0,0.21687]
[1736457211822,0.15,92241.0,92226.0,0.216858]
[1736457212029,0.216825,92240.0,92231.0,0.216846]
[1736457212442,0.216825,92240.0,92226.0,0.216858]
[1736457212780,0.001,92234.0,92230.0,0.0080852]
[1736457213020,0.001,92234.0,92231.0,0.216846]
[1736457213225,0.01064934,92243.0,92231.0,0.216846]
[1736457213226,0.0807,92269.0,92244.0,0.216816]
[1736457213465,0.216792,92255.0,92241.0,0.216821]
[1736457213674,0.216784,92258.0,92245.0,0.216813]
[1736457213873,0.01129156,92253.0,92245.0,0.216813]
[1736457214084,0.00049262,92253.0,92245.0,0.216813]
[1736457214521,0.00049262,92253.0,92248.0,0.216805]
[1736457214736,0.00349262,92253.0,92248.0,0.216805]
[1736457215537,0.04151998,92253.0,92248.0,0.216805]
[1736457215760,0.00449262,92253.0,92248.0,0.216805]
[1736457215981,0.00349262,92253.0,92248.0,0.216805]
[1736457216120,0.00049262,92253.0,92248.0,0.216805]
[1736457216340,0.00349262,92253.0,92248.0,0.217805]
[1736457216770,0.00349262,92253.0,92252.0,0.216797]
[1736457216973,0.00349262,92253.0,92252.0,0.295697]
[1736457217342,0.00049262,92253.0,92252.0,0.341597]
[1736457217591,0.00049262,92253.0,92252.0,0.44589676]
[1736457217800,0.00149262,92253.0,92252.0,0.44589676]
[1736457218001,0.01082713,92288.0,92261.0,0.216776]
[1736457218202,0.216674,92305.0,92290.0,0.216706]
[1736457218330,0.25429976,92304.0,92290.0,0.216706]
[1736457218536,0.216677,92303.0,92287.0,0.216714]
[1736457218765,0.216677,92303.0,92284.0,0.21672]
[1736457218766,0.216687,92299.0,92284.0,0.21672]
[1736457218923,0.22543408,92298.0,92284.0,0.21672]
[1736457219305,0.22543408,92298.0,92284.0,0.433442]
[1736457219513,0.22543408,92298.0,92288.0,0.216712]
[1736457220166,0.07543408,92298.0,92288.0,0.216712]
[1736457220501,0.07943408,92298.0,92288.0,0.216712]
[1736457220705,0.05514138,92297.0,92288.0,0.216712]
[1736457220905,0.05514138,92297.0,92285.0,0.216718]
[1736457220906,0.216718,92286.0,92259.0,0.0459]
[1736457221105,0.216718,92286.0,92272.0,0.216749]
[1736457221529,0.216709,92290.0,92276.0,0.21674]
[1736457221915,0.15,92289.0,92270.0,0.216755]
[1736457222164,0.002,92298.0,92271.0,0.10429976]
[1736457222362,0.01095545,92299.0,92283.0,0.216722]
[1736457222573,0.0001704,92315.0,92268.0,0.075]
[1736457222574,0.15,92297.0,92268.0,0.075]
[1736457222764,0.15,92295.0,92280.0,0.21673]
[1736457223312,0.15,92293.0,92280.0,0.21673]
[1736457223515,0.216703,92292.0,92280.0,0.21673]
[1736457223721,0.09043898,92291.0,92280.0,0.21673]
[1736457224275,0.09043898,92291.0,92280.0,0.20772998]
[1736457224481,0.216703,92292.0,92280.0,0.20772998]
[1736457225483,0.216703,92292.0,92280.0,0.20872998]
[1736457226206,0.216703,92292.0,92280.0,0.20972998]
[1736457226402,0.216703,92292.0,92280.0,0.20872998]
[1736457226606,0.219703,92292.0,92280.0,0.20872998]
[1736457227010,0.218703,92292.0,92280.0,0.20872998]
[1736457227233,0.215703,92292.0,92280.0,0.20872998]
[1736457227436,0.01079341,92295.0,92280.0,0.20872998]
[1736457227691,0.216667,92308.0,92292.0,0.216703]
[1736457227830,0.1,92321.0,92292.0,0.0831]
[1736457228034,0.16089924,92310.0,92297.0,0.216691]
[1736457228233,0.15,92308.0,92297.0,0.20769098]
[1736457228487,0.20838126,92308.0,92297.0,0.20769098]
[1736457229111,0.15,92306.0,92297.0,0.20769098]
[1736457229345,0.15,92306.0,92293.0,0.216701]
[1736457229601,0.216689,92299.0,92288.0,0.0482]
[1736457229859,0.10429976,92305.0,92284.0,0.21672]
[1736457230117,0.10429976,92305.0,92284.0,0.21462]
[1736457230118,0.216697,92295.0,92284.0,0.21462]
[1736457230386,0.216697,92295.0,92284.0,0.20942]
[1736457231252,0.216707,92291.0,92277.0,0.216737]
[1736457231438,0.15,92297.0,92274.0,0.0482]
[1736457231632,0.02542998,92296.0,92284.0,0.001]
[1736457231784,0.216696,92295.0,92284.0,0.001]
[1736457232238,0.216696,92295.0,92281.0,0.216727]
[1736457232464,0.216696,92295.0,92284.0,0.21672]
[1736457233198,0.216696,92295.0,92284.0,0.20771998]
[1736457234277,0.216696,92295.0,92284.0,0.20871998]
[1736457234486,0.37744725,92297.0,92284.0,0.42544198]
[1736457234685,0.37744725,92297.0,92284.0,0.42644198]
[1736457235008,0.37744725,92297.0,92284.0,0.42444198]
[1736457235167,0.37744725,92297.0,92291.0,0.216703]
[1736457235168,0.01075625,92297.0,92291.0,0.216703]
[1736457235428,0.216694,92296.0,92285.0,0.216719]
[1736457236165,0.216704,92292.0,92281.0,0.216728]
[1736457236371,0.216694,92296.0,92281.0,0.216728]
[1736457236578,0.216694,92296.0,92285.0,0.216718]
[1736457237951,0.216694,92296.0,92285.0,0.217718]
[1736457238299,0.043338,92295.0,92285.0,0.20871798]
[1736457240550,0.216698,92294.0,92285.0,0.001]
[1736457240723,0.216698,92294.0,92282.0,0.216726]
[1736457240941,0.216698,92294.0,92279.0,0.216732]
[1736457240942,0.043338,92295.0,92285.0,0.216718]
[1736457241144,0.01091538,92296.0,92288.0,0.21671]
[1736457241360,0.01091538,92296.0,92285.0,0.001]
[1736457241361,0.1,92329.0,92286.0,0.0783]
[1736457241569,0.216658,92312.0,92303.0,0.216675]
[1736457241796,0.216663,92309.0,92300.0,0.216684]
[1736457242000,0.15,92308.0,92300.0,0.214384]
[1736457242159,0.216652,92314.0,92303.0,0.216675]
[1736457242606,0.007,92310.0,92303.0,0.217675]
[1736457242979,0.15,92313.0,92303.0,0.216675]
[1736457243190,0.15,92313.0,92307.0,0.216667]
[1736457243392,0.15,92313.0,92301.0,0.0459]
[1736457243393,0.0109663,92314.0,92311.0,0.216658]
[1736457243713,0.21663,92324.0,92311.0,0.216658]
[1736457243915,0.01064666,92316.0,92311.0,0.433316]
[1736457244118,0.01064666,92316.0,92311.0,0.431016]
[1736457244650,0.0108417,92323.0,92311.0,0.431016]
[1736457245268,0.0001704,92335.0,92311.0,0.434016]
[1736457245496,0.0011704,92315.0,92311.0,0.439016]
[1736457245707,0.0001704,92315.0,92311.0,0.434016]
[1736457246109,0.0011704,92315.0,92311.0,0.439016]
[1736457246317,0.0011704,92315.0,92311.0,0.003]
[1736457246318,0.0001704,92315.0,92311.0,0.003]
[1736457246789,0.0001704,92315.0,92310.0,0.216659]
[1736457247166,0.0001704,92315.0,92312.0,0.216656]
[1736457247375,0.0001704,92315.0,92311.0,0.003]
[1736457247683,0.0001704,92315.0,92310.0,0.216659]
[1736457247825,0.0001704,92315.0,92312.0,0.216656]
[1736457248266,0.0001704,92315.0,92311.0,0.01]
[1736457248267,0.0011704,92315.0,92311.0,0.01]
[1736457248495,0.0001704,92315.0,92305.0,0.216671]
[1736457248690,0.0001704,92315.0,92311.0,0.007]
[1736457248848,0.0011704,92315.0,92311.0,0.01]
[1736457249047,0.0001704,92315.0,92311.0,0.003]
[1736457249277,0.0001704,92315.0,92311.0,0.011]
[1736457249473,0.0011704,92315.0,92311.0,0.011]
[1736457249835,0.0001704,92315.0,92311.0,0.003]
[1736457250039,0.0011704,92315.0,92311.0,0.01]
[1736457250244,0.0011704,92315.0,92311.0,0.007]
[1736457250445,0.0011704,92315.0,92311.0,0.011]
[1736457250709,0.0119805,92315.0,92311.0,0.011]
[1736457251279,0.0109805,92315.0,92311.0,0.004]
[1736457251483,0.0109805,92315.0,92311.0,0.003]
[1736457251717,0.03374185,92315.0,92311.0,0.003]
[1736457251917,0.03374185,92315.0,92311.0,0.002]
[1736457252130,0.03374185,92315.0,92311.0,0.003]
[1736457253084,0.03374185,92315.0,92309.0,0.21066298]
[1736457253285,0.0001704,92315.0,92314.0,0.216651]
[1736457254525,0.0001704,92315.0,92314.0,0.217651]
[1736457255111,0.0001704,92315.0,92314.0,0.216651]
[1736457255713,0.0011704,92315.0,92314.0,0.223651]
[1736457255914,0.0001704,92315.0,92314.0,0.216651]
[1736457256536,0.0011704,92315.0,92314.0,0.007]
[1736457256714,0.0011704,92315.0,92314.0,0.01]
[1736457257135,0.0011704,92315.0,92314.0,0.007]
[1736457257623,0.0011704,92315.0,92314.0,0.01]
[1736457257738,0.0001704,92315.0,92314.0,0.003]
[1736457257967,0.03685144,92315.0,92314.0,0.003]
[1736457258175,0.0011704,92315.0,92314.0,0.00099998]
[1736457258841,0.0001704,92315.0,92299.0,0.216685]
[1736457258994,0.216651,92314.0,92299.0,0.21683281]
[1736457259204,0.0001704,92315.0,92314.0,0.001]
[1736457259407,0.0001704,92315.0,92307.0,0.216666]
[1736457259820,0.0001704,92315.0,92314.0,0.001]
[1736457260109,0.21662,92328.0,92314.0,0.001]
[1736457260308,0.0001704,92335.0,92314.0,0.001]
[1736457260507,0.216623,92326.0,92314.0,0.001]
[1736457260724,0.0216623,92325.0,92314.0,0.217649]
[1736457261126,0.216639,92320.0,92305.0,0.21667]
[1736457261325,0.216639,92320.0,92314.0,0.001]
[1736457261573,0.216612,92331.0,92314.0,0.001]
[1736457261794,0.216621,92328.0,92315.0,0.216649]
[1736457262957,0.218621,92328.0,92315.0,0.216649]
[1736457263169,0.05395328,92327.0,92315.0,0.20764898]
[1736457263594,0.216623,92326.0,92315.0,0.20764898]
[1736457264189,0.002,92328.0,92316.0,0.216647]
[1736457264447,0.01088068,92331.0,92330.0,0.216614]
[1736457264618,0.216582,92344.0,92334.0,0.216604]
[1736457264997,0.0108796,92337.0,92334.0,0.216604]
[1736457265426,0.0001704,92347.0,92334.0,0.216604]
[1736457265647,0.0001704,92347.0,92334.0,0.44210376]
[1736457265832,0.00227725,92335.0,92334.0,0.44210376]
[1736457266040,0.00027725,92335.0,92334.0,0.44210376]
[1736457266399,0.00027725,92335.0,92334.0,0.44000376]
[1736457266603,0.0001704,92372.0,92365.0,0.1293]
[1736457266801,0.0001704,92372.0,92365.0,0.24468231]
[1736457267029,0.0001704,92372.0,92365.0,0.23359976]
[1736457267030,0.00066347,92366.0,92365.0,0.23359976]
[1736457267234,0.00066347,92366.0,92365.0,0.24359976]
[1736457267441,0.00066347,92366.0,92365.0,0.23359976]
[1736457267634,0.00066347,92366.0,92365.0,0.24359976]
[1736457268062,0.00166347,92366.0,92365.0,0.24559976]
[1736457268286,0.00066347,92366.0,92365.0,0.23659974]
[1736457268612,0.00166347,92366.0,92365.0,0.005]
[1736457268779,0.00166347,92366.0,92365.0,0.003]
[1736457269300,0.00166347,92366.0,92365.0,0.005]
[1736457270473,0.00166347,92366.0,92365.0,0.003]
[1736457270685,0.00166347,92366.0,92365.0,0.005]
[1736457271043,0.00066347,92366.0,92365.0,0.002]
[1736457271245,0.00166347,92366.0,92365.0,0.0826]
[1736457271608,0.00066347,92366.0,92365.0,0.0826]
[1736457271828,0.00166347,92366.0,92365.0,0.0846]
[1736457273203,0.00166347,92366.0,92365.0,0.07559998]
[1736457273768,0.00166347,92366.0,92365.0,0.07539998]
[1736457274874,0.00166347,92366.0,92365.0,0.23133468]
[1736457275481,0.00166347,92366.0,92365.0,0.17969974]
[1736457275609,0.00166347,92366.0,92365.0,0.07539998]
[1736457277378,0.00166347,92366.0,92365.0,0.004]
[1736457278211,0.00166347,92366.0,92361.0,0.21654]
[1736457278212,0.00166347,92366.0,92361.0,0.21153998]
[1736457278618,0.00066347,92366.0,92349.0,0.216568]
[1736457278820,0.216534,92364.0,92346.0,0.216574]